fUST/lending_fUST_20240501
["ID","MTS","AMOUNT","RATE_DAILY","PERIOD"]
[325193102,1714572638512,-6369.36340245,0.0002058,2]
[325193104,1714572638521,-3051.58762507,0.00020581,2]
[325193105,1714572638530,-1013.72426855,0.00020581,2]
[325193106,1714572638542,-364.95616203,0.00020581,2]
[325193107,1714572638551,-20200.60362902,0.00020581,2]
[325193108,1714572638561,-9378.45996285,0.00020581,2]
[325193109,1714572638570,-7875.36127702,0.00020582,2]
[325193110,1714572638579,-2590.79776208,0.00020583,2]
[325193111,1714572638589,-413.02455114,0.00020598,2]
[325193112,1714572638599,-183.34339113,0.00020598,2]
[325193113,1714572638609,-309.59751394,0.000206,2]
[325193114,1714572638619,-526.59629684,0.00020601,2]
[325193115,1714572638628,-2963.87301535,0.00020601,2]
[325193116,1714572638638,-1090.71523957,0.00020605,2]
[325193117,1714572638647,-890.92384481,0.00020605,2]
[325193119,1714572638657,-1576.76485353,0.00020605,2]
[325193121,1714572638668,-1755.32230264,0.00020605,2]
[325193123,1714572638677,-196.34286714,0.00020606,2]
[325193125,1714572638686,-158.41295254,0.00020653,2]
[325193127,1714572638696,-521.0070079,0.00020657,2]
[325193129,1714572638706,-213.76106557,0.00020665,2]
[325193131,1714572638715,-1078.54510718,0.00020812,2]
[325193133,1714572638724,-154.96885472,0.00020905,2]
[325193135,1714572638734,-378.29421461,0.00020908,2]
[325193137,1714572638743,-135.32804835,0.00020909,2]
[325193139,1714572638762,-54.03977598,0.00020909,2]
[325193140,1714572638772,-730.38126429,0.00020909,2]
[325193141,1714572638782,-361.9639164,0.00020909,2]
[325193142,1714572638791,-154.82968734,0.00020909,2]
[325193144,1714572638801,-337.66555346,0.00020909,2]
[325193146,1714572638810,-1890.08486794,0.00020909,2]
[325193147,1714572638820,-700.5279589,0.00020909,2]
[325193150,1714572638985,-47751.41363717,0.00020911,2]
[325193151,1714572638995,-1461.2935246,0.00020912,2]
[325193152,1714572639006,-981.13872164,0.00020912,2]
[325193153,1714572639016,-360.69797139,0.00020912,2]
[325193154,1714572639026,-15676.49529171,0.00020912,2]
[325193155,1714572639037,-166.666666,0.00021918,2]
[325193156,1714572639047,-154.79876161,0.000223,2]
[325193157,1714572639057,-166.666666,0.00022431,2]
[325193158,1714572639066,-166.666666,0.00022944,2]
[325193159,1714572639076,-714.26625523,0.00023,2]
[325193160,1714572639086,-166.666666,0.00023456,2]
[325193161,1714572639095,-318.30309536,0.000239,2]
[325193162,1714572639104,-166.666666,0.00023969,2]
[325193163,1714572639120,-166.666666,0.00024482,2]
[325193164,1714572639129,-154.82968734,0.00025,2]
[325193165,1714572639138,-1561.17929942,0.00027,2]
[325193166,1714572639147,-61246.209182,0.0002877,2]
[325193167,1714572639161,-318.30309536,0.000289,2]
[325193168,1714572639171,-843.66722657,0.00029,2]
[325193169,1714572639179,-1078.54510714,0.00029027,2]
[325193170,1714572639188,-250.0,0.000299,2]
[325193171,1714572639199,-500.0,0.000299,2]
[325193172,1714572639208,-22114.70638908,0.0003,7]
[325193173,1714572639218,-49999.999999,0.0003,30]
[325193174,1714572639227,-577.18324782,0.0003,2]
[325193175,1714572639240,-3722.55253328,0.0003,4]
[325193176,1714572639250,-1437.47835857,0.00031,2]
[325193177,1714572639259,-447.2209758,0.00032,4]
[325193178,1714572639268,-1012.16,0.00032876,7]
[325193179,1714572639278,-1012.16,0.00032876,10]
[325193180,1714572639287,-1012.16,0.00032876,13]
[325193181,1714572639296,-1012.16,0.00032876,16]
[325193182,1714572639305,-1012.16,0.00032876,19]
[325193183,1714572639314,-1012.16,0.00032876,22]
[325193184,1714572639323,-1012.16,0.00032876,25]
[325193185,1714572639333,-1012.16,0.00032876,28]
[325193186,1714572639342,-466.46671286,0.00034,4]
[325193187,1714572639351,-1000.0,0.000348,3]
[325193188,1714572639366,-154.82968734,0.00035,4]
[325193189,1714572639375,-5033.96699466,0.00035,4]
[325193190,1714572639385,-597.98045973,0.00035,2]
[325193191,1714572639395,-1729.98661472,0.00035,30]
[325193192,1714572639405,-554.45471951,0.00035,30]
[325193193,1714572639415,-447.24606383,0.00035,10]
[325193194,1714572639424,-88888.0,0.00035416,5]
[325193195,1714572639434,-1012.16,0.00035516,31]
[325193196,1714572639444,-1012.16,0.00035516,34]
[325193197,1714572639454,-556.050328,0.00035616,120]
[325193198,1714572639463,-25557.34,0.00035616,3]
[325193199,1714572639473,-21297.78,0.00035616,3]
[325193200,1714572639484,-1012.16,0.00036999,37]
[325193201,1714572639493,-2049.08470554,0.00037,2]
[325193202,1714572639502,-10664.09300882,0.00037,5]
[325193203,1714572639512,-1078.54510714,0.00037241,2]
[325193204,1714572639522,-321.52307401,0.00038,30]
[325193205,1714572639532,-528.76512032,0.00038,2]
[325193206,1714572639542,-604.07511,0.00039356,2]
[325193207,1714572639553,-604.07512,0.00039847,2]
[325193208,1714572639563,-1520.24750243,0.0004,4]
[325193209,1714572639574,-486.33472313,0.0004,2]
[325193210,1714572639584,-5104.97968368,0.0004,4]
[325193211,1714572639594,-1612.3,0.00040019,3]
[325193212,1714572639604,-604.07512,0.00040339,2]
[325193213,1714572639620,-1266.78937536,0.00040404,4]
[325193214,1714572639629,-604.07512,0.0004083,2]
[325193215,1714572639638,-252.7509919,0.00041,2]
[325193216,1714572639648,-500.0,0.00041096,31]
[325193217,1714572639658,-500.0,0.00041096,31]
[325193218,1714572639667,-500.0,0.00041096,31]
[325193219,1714572639677,-437.92517591,0.00041096,31]
[325193220,1714572639688,-604.07512,0.00041322,2]
[325193221,1714572639698,-556.050328,0.00041553,120]
[325193222,1714572639708,-1503.40089435,0.000418,120]
[325193223,1714572639718,-604.07512,0.00041813,2]
[325193224,1714572639727,-604.07512,0.00042305,2]
[325193225,1714572639738,-154.82968734,0.0004234,10]
[325193226,1714572639747,-491.66851525,0.000425,30]
[325193227,1714572639757,-1007.951808,0.000427,42]
[325193228,1714572639767,-604.07512,0.00042796,2]
[325193229,1714572639776,-506.20966366,0.000429,42]
[325193230,1714572639787,-781.0,0.00043,120]
[325193231,1714572639796,-1000.0,0.000432,42]
[325193232,1714572639806,-604.07512,0.00043288,2]
[325193233,1714572639815,-5000.0,0.0004369,10]
[325193234,1714572639824,-1000.0,0.000437,42]
[325193235,1714572639834,-209.14423144,0.000437,7]
[325193236,1714572639843,-209.14423144,0.000437,7]
[325193237,1714572639853,-209.14423144,0.000437,7]
[325193238,1714572639870,-209.14423144,0.000437,7]
[325193239,1714572639880,-209.14423144,0.000437,7]
[325193240,1714572639890,-209.14423144,0.000437,7]
[325193241,1714572639899,-209.14423144,0.000437,7]
[325193242,1714572639908,-209.14423144,0.000437,7]
[325193243,1714572639918,-209.14423144,0.000437,7]
[325193244,1714572639928,-209.14423144,0.000437,7]
[325193245,1714572639938,-209.14423144,0.000437,7]
[325193247,1714572639948,-209.14423144,0.000437,7]
[325193249,1714572639959,-209.14423144,0.000437,7]
[325193250,1714572639968,-209.14423144,0.000437,7]
[325193251,1714572639978,-209.14423144,0.000437,7]
[325193252,1714572639987,-209.14423144,0.000437,7]
[325193253,1714572639997,-209.14423144,0.000437,7]
[325193254,1714572640007,-209.14423144,0.000437,7]
[325193255,1714572640017,-209.14423144,0.000437,7]
[325193256,1714572640028,-209.14423,0.000437,7]
[325193257,1714572640037,-653.47261522,0.00043732,2]
[325193258,1714572640047,-31829.40996569,0.00043732,30]
[325193259,1714572640056,-152.03937723,0.00043732,2]
[325193260,1714572640066,-8832.73338726,0.00043732,2]
[325193261,1714572640076,-727.51820313,0.00043732,2]
[325193262,1714572640087,-1003.60519772,0.00043732,2]
[325193263,1714572640102,-159.71048273,0.00043732,120]
[325193264,1714572640120,-2896.99907064,0.00043732,7]
[325193265,1714572640133,-183.10509946,0.00043732,30]
[325193267,1714572640146,-165.8168504,0.00043732,49]
[325193268,1714572640160,-2250.0,0.00043732,60]
[325193269,1714572640178,-2250.0,0.00043732,60]
[325193270,1714572640192,-604.07512,0.00043779,2]
[325193271,1714572640207,-1012.16,0.00043789,40]
[325193272,1714572640222,-1012.16,0.00043789,43]
[325193273,1714572640238,-604.07512,0.00044271,2]
[325193274,1714572640252,-604.07512,0.00044762,2]
[325193275,1714572640265,-154.87424562,0.00044892,30]
[325193276,1714572640279,-151.0,0.00045,120]
[325193277,1714572640291,-604.07512,0.00045254,2]
[325193278,1714572640303,-1078.54510714,0.00045456,2]
[325193279,1714572640315,-711.47856543,0.00045464,30]
[325193280,1714572640327,-151.0,0.00045699,120]
[325193281,1714572640341,-604.07512,0.00045746,2]
[325193282,1714572640354,-604.07512,0.00046237,2]
[325193283,1714572640371,-151.0,0.00046384,120]
[325193284,1714572640385,-604.07512,0.00046729,2]
[325193285,1714572640400,-152.70730249,0.00046771,30]
[325193286,1714572640412,-5000.0,0.0004694,10]
[325193287,1714572640423,-5000.0,0.0004695,10]
[325193288,1714572640433,-1012.16,0.00046979,46]
[325193289,1714572640447,-35585.42079085,0.0004698,120]
[325193290,1714572640460,-151.0,0.00047068,120]
[325193291,1714572640472,-604.07512,0.0004722,2]
[325193292,1714572640484,-426.34558821,0.000473,120]
[325193293,1714572640495,-556.050328,0.00047489,120]
[325193294,1714572640509,-604.07512,0.00047712,2]
[325193295,1714572640520,-151.0,0.00047753,120]
[325193296,1714572640531,-604.07512,0.00048203,2]
[325193297,1714572640543,-151.0,0.00048438,120]
[325193298,1714572640554,-768.52966256,0.00048492,30]
[325193299,1714572640566,-604.07512,0.00048695,2]
[325193300,1714572640578,-24866.20766073,0.00049,10]
[325193301,1714572640592,-5000.0,0.00049,4]
[325193302,1714572640603,-268.39235719,0.00049,2]
[325193303,1714572640620,-151.0,0.00049123,120]
[325193304,1714572640631,-604.07512,0.00049186,2]
[325193305,1714572640643,-1012.16,0.00049287,49]
[325193306,1714572640654,-2520.44707597,0.00049315,120]
[325193307,1714572640666,-580.60326488,0.0004949,30]
[325193310,1714572640677,-604.07512,0.00049678,2]
[325193311,1714572640688,-151.0,0.00049808,120]
[325193313,1714572640700,-256.50333,0.00049863,2]
[325193315,1714572640712,-246.16363,0.00049863,2]
[325193317,1714572640724,-154.82968734,0.0005,30]
[325193318,1714572640736,-879.94320873,0.0005,15]
[325193319,1714572640748,-960.60835328,0.0005,60]
[325193320,1714572640760,-350.0,0.0005,7]
[325193321,1714572640772,-604.07512,0.00050169,2]
[325193322,1714572640784,-151.0,0.00050493,120]
[325193323,1714572640796,-604.07512,0.00050661,2]
[325193324,1714572640808,-158.79898101,0.00050757,60]
[325193325,1714572640820,-2000.0,0.0005078,90]
[325193326,1714572640831,-5000.0,0.0005089,10]
[325193327,1714572640843,-827.00898769,0.00051,120]
[325193328,1714572640855,-30076.74435897,0.00051,120]
[325193329,1714572640871,-604.07512,0.00051152,2]
[325193330,1714572640883,-151.0,0.00051178,120]
[325193331,1714572640895,-154.84515485,0.00051186,4]
[325193332,1714572640907,-150.83408251,0.00051239,2]
[325193333,1714572640919,-1012.16,0.00051299,120]
[325193334,1714572640931,-604.07512,0.00051644,2]
[325193335,1714572640943,-407.7149098,0.00051648,2]
[325193336,1714572640955,-151.0,0.00051863,120]
[325193337,1714572640969,-607.67,0.00051905,120]
[325193338,1714572640982,-500.0,0.00052054,120]
[325193339,1714572640994,-500.0,0.00052054,120]
[325193340,1714572641007,-226.53555745,0.00052054,120]
[325193341,1714572641020,-301.66816502,0.000521,4]
[325193342,1714572641033,-604.07512,0.00052135,2]
[325193343,1714572641045,-418.732,0.00052493,120]
[325193344,1714572641057,-213.617,0.00052493,120]
[325193345,1714572641069,-151.0,0.00052548,120]
[325193346,1714572641081,-604.07512,0.00052627,2]
[325193347,1714572641092,-150.0,0.0005292,59]
[325193348,1714572641104,-166.0,0.00053,120]
[325193349,1714572641122,-604.07512,0.00053119,2]
[325193350,1714572641135,-203.8574549,0.00053178,2]
[325193351,1714572641148,-151.0,0.00053233,120]
[325193352,1714572641166,-30245.7228023,0.000533,120]
[325193353,1714572641180,-556.050328,0.00053425,120]
[325193354,1714572641193,-161.98182992,0.00053459,3]
[325193355,1714572641208,-19286.04347464,0.0005357,2]
[325193356,1714572641221,-604.07512,0.0005361,2]
[325193357,1714572641232,-1012.16,0.00053669,120]
[325193358,1714572641245,-29869.9874533,0.0005367,2]
[325193359,1714572641788,-2747.14,0.00035616,3]
[325193360,1714572641828,-10223.59297646,0.00035616,3]
[325193361,1714572641840,-435.47003906,0.00035616,3]
[325193389,1714572644243,-4341.94698448,0.00035616,3]
[325193390,1714572644253,-10130.0125467,0.0005367,2]
[325193392,1714572644262,-1078.54510714,0.0005367,2]
[325193393,1714572644271,-1000.0,0.00053692,14]
[325193395,1714572644280,-1000.0,0.00053714,14]
[325193397,1714572644289,-1012.16,0.00053769,120]
[325193398,1714572644299,-40000.0,0.0005377,2]
[325193400,1714572644308,-1000.0,0.0005377,14]
[325193402,1714572644317,-151.0,0.0005377,7]
[325193404,1714572644326,-151.0,0.0005377,7]
[325193406,1714572644335,-229.031688,0.0005377,7]
[325193408,1714572644344,-229.031688,0.0005377,7]
[325193410,1714572644354,-151.0,0.0005377,7]
[325193412,1714572644364,-395.330545,0.0005377,7]
[325193414,1714572644373,-151.0,0.0005377,7]
[325193416,1714572644383,-395.330545,0.0005377,7]
[325193418,1714572644392,-180.805915,0.0005377,7]
[325193420,1714572644402,-180.805915,0.0005377,7]
[325193421,1714572644411,-336.072878,0.0005377,7]
[325193422,1714572644420,-336.072878,0.0005377,7]
[325193423,1714572644431,-151.0,0.0005377,7]
[325193424,1714572644441,-157.372826,0.0005377,7]
[325193425,1714572644451,-157.372826,0.0005377,7]
[325193427,1714572644462,-151.0,0.0005377,7]
[325193429,1714572644472,-151.0,0.0005377,7]
[325193431,1714572644481,-496.445566,0.0005377,7]
[325193432,1714572644492,-496.445566,0.0005377,7]
[325193434,1714572644502,-265.381357,0.0005377,7]
[325193436,1714572644513,-265.381357,0.0005377,7]
[325193437,1714572644523,-151.0,0.0005377,7]
[325193438,1714572644532,-151.0,0.0005377,7]
[325193439,1714572644541,-193.688564,0.0005377,7]
[325193440,1714572644552,-193.688564,0.0005377,7]
[325193441,1714572644562,-365.042218,0.0005377,7]
[325193442,1714572644572,-151.0,0.0005377,7]
[325193443,1714572644582,-365.042218,0.0005377,7]
[325193444,1714572644591,-151.0,0.0005377,7]
[325193445,1714572644601,-151.0,0.0005377,7]
[325193446,1714572644610,-1000.0,0.00053779,14]
[325193447,1714572644620,-1012.16,0.0005378,120]
[325193448,1714572644630,-151.0,0.00053781,7]
[325193449,1714572644640,-339.599942,0.00053781,7]
[325193450,1714572644650,-339.599942,0.00053781,7]
[325193451,1714572644659,-151.0,0.00053781,7]
[325193452,1714572644669,-151.0,0.00053781,7]
[325193453,1714572644679,-151.0,0.00053781,7]
[325193454,1714572644688,-151.0,0.00053781,7]
[325193455,1714572644698,-10000.0,0.00053786,120]
[325193456,1714572644707,-1000.0,0.00053788,14]
[325193457,1714572644716,-500.0,0.00053794,120]
[325193458,1714572644726,-500.0,0.00053794,120]
[325193459,1714572644735,-500.0,0.00053794,120]
[325193460,1714572644745,-500.0,0.00053794,120]
[325193461,1714572644755,-297.63,0.00053794,120]
[325193462,1714572644764,-1000.0,0.00053794,14]
[325193463,1714572644774,-1012.16,0.00053799,120]
[325193464,1714572644783,-1012.16,0.00053799,120]
[325193465,1714572644794,-1012.16,0.00053799,120]
[325193466,1714572644803,-1012.16,0.00053799,120]
[325193467,1714572644813,-1012.30193991,0.00053799,120]
[325193468,1714572644824,-40000.0,0.000538,2]
[325193469,1714572644833,-2111.49578583,0.000538,90]
[325193470,1714572644843,-151.0,0.000538,7]
[325193471,1714572644853,-293.818772,0.000538,7]
[325193472,1714572644864,-151.0,0.000538,7]
[325193473,1714572644873,-293.818772,0.000538,7]
[325193474,1714572644883,-1000.0,0.00053805,14]
[325193475,1714572644893,-300.0,0.00053814,14]
[325193476,1714572644903,-1000.0,0.00053819,14]
[325193477,1714572644913,-1000.0,0.00053843,14]
[325193478,1714572644923,-8232.4,0.00053847,7]
[325193479,1714572644932,-8232.4,0.00053847,7]
[325193480,1714572644942,-8232.4,0.00053847,7]
[325193481,1714572644952,-8232.4,0.00053847,7]
[325193482,1714572644961,-8232.4,0.00053847,7]
[325193483,1714572644971,-8232.4,0.00053847,7]
[325193484,1714572644980,-8232.4,0.00053847,7]
[325193485,1714572644990,-8232.4,0.00053847,7]
[325193486,1714572644999,-8232.4,0.00053847,7]
[325193487,1714572645009,-5000.0,0.0005385,10]
[325193488,1714572645018,-471.88431839,0.00053859,14]
[325193489,1714572645027,-1000.0,0.00053869,30]
[325193490,1714572645037,-1000.0,0.00053869,30]
[325193491,1714572645046,-1000.0,0.00053869,30]
[325193492,1714572645055,-496.445566,0.00053869,7]
[325193493,1714572645065,-496.445566,0.00053869,7]
[325193494,1714572645074,-265.381357,0.00053869,7]
[325193495,1714572645084,-265.381357,0.00053869,7]
[325193496,1714572645093,-151.0,0.00053869,7]
[325193497,1714572645103,-151.0,0.00053869,7]
[325193498,1714572645114,-193.688564,0.00053869,7]
[325193499,1714572645123,-193.688564,0.00053869,7]
[325193500,1714572645132,-365.042218,0.00053869,7]
[325193501,1714572645142,-151.0,0.00053869,7]
[325193502,1714572645153,-365.042218,0.00053869,7]
[325193503,1714572645162,-151.0,0.00053869,7]
[325193504,1714572645174,-151.0,0.00053869,7]
[325193505,1714572645185,-40000.0,0.0005387,2]
[325193506,1714572645194,-220.646436,0.0005387,7]
[325193507,1714572645203,-220.646436,0.0005387,7]
[325193508,1714572645212,-393.95084,0.0005387,7]
[325193509,1714572645223,-421.441234,0.0005387,7]
[325193510,1714572645232,-421.441234,0.0005387,7]
[325193511,1714572645241,-5000.0,0.0005387,10]
[325193512,1714572645251,-151.0,0.0005387,7]
[325193513,1714572645260,-395.330545,0.0005387,7]
[325193514,1714572645271,-151.0,0.0005387,7]
[325193515,1714572645281,-395.330545,0.0005387,7]
[325193516,1714572645290,-180.805915,0.0005387,7]
[325193517,1714572645299,-180.805915,0.0005387,7]
[325193518,1714572645308,-336.072878,0.0005387,7]
[325193519,1714572645318,-336.072878,0.0005387,7]
[325193520,1714572645327,-1162.28244802,0.00053872,4]
[325193521,1714572645336,-303.86860129,0.00053872,15]
[325193522,1714572645346,-151.0,0.00053872,7]
[325193523,1714572645356,-151.0,0.00053872,7]
[325193524,1714572645367,-229.031688,0.00053872,7]
[325193525,1714572645376,-229.031688,0.00053872,7]
[325193526,1714572645386,-151.0,0.00053875,7]
[325193527,1714572645395,-339.599942,0.00053875,7]
[325193528,1714572645405,-339.599942,0.00053875,7]
[325193529,1714572645415,-151.0,0.00053875,7]
[325193530,1714572645424,-151.0,0.00053875,7]
[325193531,1714572645434,-151.0,0.00053875,7]
[325193532,1714572645443,-151.0,0.00053875,7]
[325193533,1714572645452,-241.72763779,0.0005388,4]
[325193534,1714572645462,-160.0,0.00053881,60]
[325193535,1714572645471,-151.0,0.00053881,7]
[325193536,1714572645481,-151.669557,0.00053881,7]
[325193537,1714572645490,-151.0,0.00053881,7]
[325193538,1714572645499,-263.565838,0.00053881,7]
[325193539,1714572645509,-263.565838,0.00053881,7]
[325193540,1714572645518,-156.684914,0.00053881,7]
[325193541,1714572645527,-260.552831,0.00053881,7]
[325193542,1714572645537,-260.552831,0.00053881,7]
[325193543,1714572645546,-226.452047,0.00053881,7]
[325193544,1714572645556,-226.452047,0.00053881,7]
[325193545,1714572645565,-151.0,0.00053881,7]
[325193546,1714572645575,-151.0,0.00053881,7]
[325193547,1714572645585,-293.818772,0.00053881,7]
[325193548,1714572645594,-151.0,0.00053881,7]
[325193549,1714572645604,-293.818772,0.00053881,7]
[325193550,1714572645614,-151.0,0.00053881,7]
[325193551,1714572645624,-157.372826,0.00053881,7]
[325193552,1714572645634,-157.372826,0.00053881,7]
[325193553,1714572645644,-151.0,0.00053881,7]
[325193554,1714572645653,-947.75857,0.00053881,7]
[325193555,1714572645664,-947.75857,0.00053881,7]
[325193556,1714572645673,-224.114001,0.00053881,7]
[325193557,1714572645683,-151.0,0.00053881,7]
[325193558,1714572645693,-151.0,0.00053881,7]
[325193559,1714572645703,-665.158902,0.00053881,7]
[325193560,1714572645713,-665.158902,0.00053881,7]
[325193561,1714572645723,-368673.90923259,0.00053882,120]
[325193562,1714572645733,-151.0,0.00053882,3]
[325193563,1714572645743,-151.0,0.00053882,7]
[325193564,1714572645753,-158.342369,0.00053882,3]
[325193565,1714572645763,-151.0,0.00053882,7]
[325193566,1714572645772,-151.0,0.00053882,7]
[325193567,1714572645782,-151.0,0.00053882,7]
[325193568,1714572645792,-263.565838,0.00053882,7]
[325193569,1714572645802,-263.565838,0.00053882,7]
[325193570,1714572645811,-260.552831,0.00053882,7]
[325193571,1714572645820,-260.552831,0.00053882,7]
[325193572,1714572645830,-226.452047,0.00053882,7]
[325193573,1714572645839,-226.452047,0.00053882,7]
[325193574,1714572645849,-151.0,0.00053882,7]
[325193575,1714572645859,-151.0,0.00053882,7]
[325193576,1714572645871,-220.646436,0.00053882,7]
[325193578,1714572645881,-220.646436,0.00053882,7]
[325193579,1714572645891,-393.95084,0.00053882,7]
[325193581,1714572645900,-421.441234,0.00053882,7]
[325193582,1714572645910,-421.441234,0.00053882,7]
[325193583,1714572645919,-151.0,0.00053882,7]
[325193584,1714572645929,-254.928824,0.00053882,7]
[325193585,1714572645938,-339.599942,0.00053882,7]
[325193586,1714572645948,-339.599942,0.00053882,7]
[325193587,1714572645957,-151.0,0.00053882,7]
[325193588,1714572645966,-151.0,0.00053882,7]
[325193589,1714572645976,-151.0,0.00053882,7]
[325193590,1714572645986,-220.828565,0.00053882,7]
[325193591,1714572645995,-151.0,0.00053882,7]
[325193592,1714572646004,-151.0,0.00053882,7]
[325193593,1714572646014,-229.031688,0.00053882,7]
[325193594,1714572646024,-229.031688,0.00053882,7]
[325193595,1714572646033,-293.818772,0.00053882,7]
[325193596,1714572646042,-151.0,0.00053882,7]
[325193597,1714572646051,-293.818772,0.00053882,7]
[325193598,1714572646060,-151.0,0.00053882,7]
[325193599,1714572646070,-395.330545,0.00053882,7]
[325193600,1714572646079,-151.0,0.00053882,7]
[325193601,1714572646088,-395.330545,0.00053882,7]
[325193602,1714572646250,-180.805915,0.00053882,7]
[325193603,1714572646260,-180.805915,0.00053882,7]
[325193604,1714572646269,-336.072878,0.00053882,7]
[325193605,1714572646279,-336.072878,0.00053882,7]
[325193606,1714572646288,-151.0,0.00053882,7]
[325193607,1714572646299,-157.372826,0.00053882,7]
[325193608,1714572646308,-157.372826,0.00053882,7]
[325193609,1714572646318,-151.0,0.00053882,7]
[325193610,1714572646328,-947.75857,0.00053882,7]
[325193611,1714572646338,-947.75857,0.00053882,7]
[325193613,1714572646347,-151.0,0.00053882,7]
[325193615,1714572646356,-496.445566,0.00053882,7]
[325193617,1714572646367,-496.445566,0.00053882,7]
[325193619,1714572646377,-206.01806,0.00053882,7]
[325193621,1714572646386,-265.381357,0.00053882,7]
[325193623,1714572646396,-265.381357,0.00053882,7]
[325193624,1714572646405,-151.0,0.00053882,7]
[325193626,1714572646415,-151.0,0.00053882,7]
[325193628,1714572646424,-193.688564,0.00053882,7]
[325193630,1714572646433,-193.688564,0.00053882,7]
[325193632,1714572646442,-365.042218,0.00053882,7]
[325193633,1714572646452,-151.0,0.00053882,7]
[325193634,1714572646462,-365.042218,0.00053882,7]
[325193635,1714572646471,-665.158902,0.00053882,7]
[325193637,1714572646480,-665.158902,0.00053882,7]
[325193639,1714572646490,-151.0,0.00053882,7]
[325193641,1714572646499,-151.0,0.00053882,7]
[325193643,1714572646508,-5470.68,0.00053899,7]
[325193644,1714572646517,-151.0,0.00053918,120]
[325193645,1714572646526,-214.86,0.0005397,35]
[325193646,1714572646535,-150.5,0.0005397,35]
[325193647,1714572646545,-150.5,0.0005397,35]
[325193648,1714572646554,-232.17,0.0005397,35]
[325193649,1714572646563,-536.0,0.0005397,35]
[325193650,1714572646572,-150.5,0.0005398,35]
[325193651,1714572646582,-150.5,0.0005398,35]
[325193652,1714572646592,-238.99,0.0005398,35]
[325193653,1714572646601,-150.5,0.0005398,35]
[325193654,1714572646610,-150.5,0.0005398,35]
[325193655,1714572646620,-536.0,0.0005398,35]
[325193656,1714572646630,-150.5,0.0005399,35]
[325193657,1714572646641,-150.5,0.0005399,35]
[325193658,1714572646651,-150.5,0.0005399,35]
[325193659,1714572646660,-150.5,0.0005399,35]
[325193660,1714572646669,-150.5,0.0005399,35]
[325193661,1714572646680,-181.67,0.0005399,35]
[325193662,1714572646689,-536.0,0.0005399,35]
[325193663,1714572646698,-5000.0,0.0005399,10]
[325193664,1714572646707,-3750.04814631,0.00053994,120]
[325193665,1714572646716,-521.92146173,0.00053996,4]
[325193666,1714572646726,-200.0,0.00053996,4]
[325193667,1714572646735,-526.0435109,0.00053996,4]
[325193668,1714572646745,-206.1683847,0.00053996,4]
[325193669,1714572646754,-716.90467144,0.00053996,4]
[325193670,1714572646763,-262.35852681,0.00053996,4]
[325193671,1714572646773,-693.45686249,0.00053996,4]
[325193672,1714572646783,-250.35798235,0.00053996,4]
[325193673,1714572646792,-170.61290967,0.00053996,4]
[325193674,1714572646802,-105238.28184401,0.00053996,2]
[325193675,1714572646812,-151.0,0.00053996,7]
[325193676,1714572646821,-157.887355,0.00053996,7]
[325193677,1714572646830,-199.67389647,0.00053997,4]
[325193678,1714572646839,-200.12196174,0.00053998,4]
[325193679,1714572646850,-5810.00596259,0.00053998,4]
[325193680,1714572646859,-163.43298754,0.00053998,4]
[325193681,1714572646870,-366.96413049,0.00053998,4]
[325193682,1714572646880,-475.3346953,0.00053998,4]
[325193683,1714572646889,-151.0,0.00053998,3]
[325193684,1714572646899,-151.0,0.00053998,7]
[325193685,1714572646908,-151.0,0.00053998,7]
[325193686,1714572646917,-151.0,0.00053998,7]
[325193687,1714572646927,-151.0,0.00053998,7]